fUST/lending_fUST_20250828
["ID","MTS","AMOUNT","RATE_DAILY","PERIOD"]
[381814054,1756357855951,-480.0,0.00020832,2]
[381814055,1756357855961,-761.51,0.00020832,2]
[381814056,1756357855971,-704.5,0.00020832,2]
[381814057,1756357855980,-480.0,0.00020832,2]
[381814058,1756357855994,-723.72,0.00020832,2]
[381814059,1756357856003,-1276.85,0.00020832,2]
[381814060,1756357856013,-480.0,0.00020832,2]
[381814061,1756357856023,-480.0,0.00020832,2]
[381814062,1756357856033,-480.0,0.00020832,2]
[381814063,1756357856043,-480.0,0.00020832,2]
[381814064,1756357856053,-480.0,0.00020832,2]
[381814065,1756357856063,-1002.35,0.00020832,2]
[381814066,1756357856074,-1166.04,0.00020832,2]
[381814067,1756357856083,-1455.86,0.00020832,2]
[381814068,1756357856093,-480.0,0.00020832,2]
[381814069,1756357856102,-244.31567726,0.00020832,2]
[381814070,1756357856112,-819.21,0.00020832,2]
[381814071,1756357856121,-480.0,0.00020832,2]
[381814072,1756357856132,-480.0,0.00020832,2]
[381814073,1756357856142,-2444.59,0.00020832,2]
[381814074,1756357856153,-766.24,0.00020832,2]
[381814075,1756357856162,-1830.55,0.00020832,2]
[381814076,1756357856172,-480.0,0.00020832,2]
[381814077,1756357856182,-735.26,0.00020832,2]
[381814078,1756357856193,-480.0,0.00020832,2]
[381814079,1756357856203,-480.0,0.00020832,2]
[381814080,1756357856214,-523.99,0.00020832,2]
[381814081,1756357856225,-2483.8,0.00020832,2]
[381814082,1756357856234,-487.66,0.00020832,2]
[381814083,1756357856243,-1398.72,0.00020832,2]
[381814084,1756357856254,-480.0,0.00020832,2]
[381814085,1756357856264,-546.78,0.00020832,2]
[381814086,1756357856273,-480.0,0.00020832,2]
[381814087,1756357856283,-480.0,0.00020832,2]
[381814088,1756357856292,-480.0,0.00020832,2]
[381814089,1756357856302,-480.0,0.00020832,2]
[381814090,1756357856312,-666.93,0.00020832,2]
[381814091,1756357856322,-480.0,0.00020832,2]
[381814092,1756357856333,-480.0,0.00020832,2]
[381814093,1756357856344,-480.0,0.00020832,2]
[381814094,1756357856355,-495.39,0.00020832,2]
[381814095,1756357856364,-737.84,0.00020832,2]
[381814096,1756357856373,-4058.33,0.00020832,2]
[381814097,1756357856384,-1036.6,0.00020832,2]
[381814098,1756357856394,-480.0,0.00020832,2]
[381814099,1756357856404,-480.0,0.00020832,2]
[381814100,1756357856413,-528.58,0.00020832,2]
[381814101,1756357856423,-3488.45,0.00020832,2]
[381814102,1756357856432,-480.0,0.00020832,2]
[381814103,1756357856442,-480.0,0.00020832,2]
[381814104,1756357856451,-480.0,0.00020832,2]
[381814105,1756357856461,-2192.53,0.00020832,2]
[381814106,1756357856473,-834.38,0.00020832,2]
[381814107,1756357856483,-480.0,0.00020832,2]
[381814108,1756357856492,-480.0,0.00020832,2]
[381814109,1756357856502,-614.2,0.00020832,2]
[381814110,1756357856512,-480.0,0.00020832,2]
[381814111,1756357856522,-647.01,0.00020832,2]
[381814112,1756357856532,-481.84850959,0.00020832,2]
[381814113,1756357856542,-603.43,0.00020832,2]
[381814114,1756357856553,-480.0,0.00020832,2]
[381814115,1756357856563,-609.37,0.00020832,2]
[381814116,1756357856572,-480.0,0.00020832,2]
[381814117,1756357856582,-1642.89,0.00020832,2]
[381814118,1756357856591,-547.64,0.00020832,2]
[381814119,1756357856601,-808.8,0.00020832,2]
[381814120,1756357856612,-926.55,0.00020832,2]
[381814121,1756357856621,-480.0,0.00020832,2]
[381814122,1756357856631,-621.31,0.00020832,2]
[381814123,1756357856640,-1672.0,0.00020832,2]
[381814124,1756357856650,-1695.49,0.00020832,2]
[381814125,1756357856659,-633.59,0.00020832,2]
[381814126,1756357856670,-1149.85,0.00020832,2]
[381814127,1756357856680,-480.0,0.00020832,2]
[381814128,1756357856690,-480.0,0.00020832,2]
[381814129,1756357856700,-586.13,0.00020832,2]
[381814130,1756357856712,-480.0,0.00020833,2]
[381814131,1756357856721,-4914.21,0.00020833,2]
[381814132,1756357856731,-2549.75,0.00020833,2]
[381814133,1756357856741,-619.54,0.00020833,2]
[381814134,1756357856751,-4806.46,0.00020833,2]
[381814135,1756357856761,-637.66,0.00020833,2]
[381814136,1756357856772,-1581.21,0.00020833,2]
[381814137,1756357856781,-1167.81,0.00020835,2]
[381814138,1756357856791,-480.0,0.00020835,2]
[381814139,1756357856801,-946.91,0.00020835,2]
[381814140,1756357856811,-480.0,0.00020835,2]
[381814141,1756357856820,-609.78,0.00020835,2]
[381814142,1756357856829,-480.0,0.00020835,2]
[381814143,1756357856840,-500.0,0.00020838,2]
[381814144,1756357856850,-151.0,0.00020838,2]
[381814145,1756357856859,-482.52808145,0.00020838,2]
[381814146,1756357856868,-524.71,0.00020838,2]
[381814147,1756357856878,-655.02,0.00020838,2]
[381814148,1756357856888,-856.4,0.00020838,2]
[381814149,1756357856897,-514.53,0.00020838,2]
[381814150,1756357856907,-604.54,0.00020838,2]
[381814151,1756357856918,-526.58,0.00020838,2]
[381814152,1756357856927,-480.0,0.00020838,2]
[381814153,1756357856936,-480.0,0.00020838,2]
[381814154,1756357856945,-488.73,0.00020838,2]
[381814155,1756357856955,-991.16,0.00020838,2]
[381814156,1756357856964,-687.05,0.00020838,2]
[381814157,1756357856973,-815.5,0.00020838,2]
[381814158,1756357856990,-480.0,0.00020838,2]
[381814159,1756357857008,-795.63,0.00020838,2]
[381814160,1756357857017,-480.0,0.00020838,2]
[381814161,1756357857026,-480.0,0.00020838,2]
[381814162,1756357857035,-1214.89,0.00020838,2]
[381814163,1756357857045,-297.45630994,0.00020838,2]
[381814164,1756357857054,-480.0,0.00020838,2]
[381814165,1756357857063,-757.81,0.00020838,2]
[381814166,1756357857072,-487.92,0.00020838,2]
[381814167,1756357857082,-503.45,0.00020838,2]
[381814168,1756357857091,-481.81904861,0.00020838,2]
[381814169,1756357857100,-1130.61,0.00020838,2]
[381814170,1756357857110,-480.0,0.00020838,2]
[381814171,1756357857119,-589.18,0.00020838,2]
[381814172,1756357857128,-610.99,0.00020838,2]
[381814173,1756357857138,-480.0,0.00020838,2]
[381814174,1756357857147,-480.0,0.00020838,2]
[381814175,1756357857158,-480.0,0.00020838,2]
[381814176,1756357857167,-480.0,0.00020838,2]
[381814177,1756357857177,-480.0,0.00020838,2]
[381814178,1756357857186,-480.0,0.00020838,2]
[381814179,1756357857195,-562.98,0.00020838,2]
[381814180,1756357857205,-480.0,0.00020838,2]
[381814181,1756357857214,-480.0,0.00020838,2]
[381814182,1756357857224,-480.0,0.00020838,2]
[381814183,1756357857234,-667.81,0.00020838,2]
[381814184,1756357857243,-480.0,0.00020838,2]
[381814185,1756357857252,-480.0,0.00020838,2]
[381814186,1756357857262,-480.0,0.00020838,2]
[381814187,1756357857271,-506.48,0.00020838,2]
[381814188,1756357857281,-708.89,0.00020838,2]
[381814189,1756357857290,-480.0,0.00020838,2]
[381814190,1756357857299,-480.0,0.00020838,2]
[381814191,1756357857308,-480.0,0.00020838,2]
[381814192,1756357857318,-596.55,0.00020838,2]
[381814193,1756357857327,-881.6,0.00020838,2]
[381814194,1756357857337,-521.32,0.00020838,2]
[381814195,1756357857347,-480.0,0.00020838,2]
[381814196,1756357857358,-662.51,0.00020838,2]
[381814197,1756357857373,-853.94,0.00020838,2]
[381814198,1756357857384,-684.51,0.00020838,2]
[381814199,1756357857393,-525.5,0.00020838,2]
[381814200,1756357857406,-599.49,0.00020838,2]
[381814201,1756357857421,-480.0,0.00020838,2]
[381814202,1756357857439,-654.52,0.00020838,2]
[381814203,1756357857450,-510.29,0.00020838,2]
[381814204,1756357857459,-1154.7,0.00020838,2]
[381814205,1756357857469,-480.0,0.00020838,2]
[381814206,1756357857480,-480.0,0.00020838,2]
[381814207,1756357857490,-515.89,0.00020838,2]
[381814208,1756357857499,-480.0,0.00020838,2]
[381814209,1756357857512,-151.0,0.00020838,2]
[381814210,1756357857522,-480.0,0.00020838,2]
[381814211,1756357857531,-480.0,0.00020838,2]
[381814212,1756357857540,-151.0,0.00020838,2]
[381814213,1756357857553,-151.0,0.00020838,2]
[381814214,1756357857563,-156.32,0.00020838,2]
[381814215,1756357857572,-845.47023312,0.00020856,2]
[381814216,1756357857582,-529.67291817,0.00020856,2]
[381814217,1756357857591,-160.0,0.00020856,2]
[381814218,1756357857601,-160.0,0.00020856,2]
[381814219,1756357857611,-417.15472785,0.00020856,2]
[381814220,1756357857620,-152.873393,0.00020867,2]
[381814221,1756357857630,-151.0,0.00020867,2]
[381814222,1756357857639,-151.0,0.00020867,2]
[381814223,1756357857649,-12710.44222334,0.00020867,2]
[381814224,1756357857658,-500.0,0.00020873,2]
[381814225,1756357857668,-501.36557393,0.00020873,2]
[381814226,1756357857677,-500.0,0.00020873,2]
[381814227,1756357857687,-500.0,0.00020873,2]
[381814228,1756357857696,-500.0,0.00020873,2]
[381814229,1756357857706,-613.92623303,0.00020873,2]
[381814230,1756357857715,-500.0,0.00020873,2]
[381814231,1756357857724,-500.0,0.00020873,2]
[381814232,1756357857734,-500.0,0.00020873,2]
[381814233,1756357857743,-500.0,0.00020873,2]
[381814234,1756357857752,-500.0,0.00020873,2]
[381814235,1756357857762,-500.0,0.00020873,2]
[381814236,1756357857771,-500.0,0.00020873,2]
[381814237,1756357857780,-500.0,0.00020873,2]
[381814238,1756357857790,-500.0,0.00020873,2]
[381814239,1756357857799,-500.0,0.00020873,2]
[381814240,1756357857808,-500.0,0.00020873,2]
[381814241,1756357857817,-500.0,0.00020873,2]
[381814242,1756357857826,-500.0,0.00020873,2]
[381814243,1756357857835,-500.0,0.00020873,2]
[381814244,1756357857845,-500.0,0.00020873,2]
[381814245,1756357857854,-500.0,0.00020873,2]
[381814246,1756357857864,-500.0,0.00020873,2]
[381814247,1756357857873,-500.0,0.00020873,2]
[381814248,1756357857883,-500.0,0.00020873,2]
[381814249,1756357857892,-505.33439425,0.00020873,2]
[381814250,1756357857902,-500.0,0.00020873,2]
[381814251,1756357857911,-500.0,0.00020873,2]
[381814252,1756357857920,-500.0,0.00020873,2]
[381814253,1756357857930,-500.0,0.00020873,2]
[381814254,1756357857939,-500.0,0.00020873,2]
[381814255,1756357857948,-500.0,0.00020873,2]
[381814256,1756357857958,-151.0,0.00020873,2]
[381814257,1756357857968,-151.0,0.00020873,2]
[381814258,1756357858034,-151.0,0.00020873,2]
[381814259,1756357858043,-209.901295,0.00020873,2]
[381814260,1756357858052,-151.0,0.00020873,2]
[381814261,1756357858063,-160.0,0.00020884,2]
[381814262,1756357858072,-160.0,0.00020884,2]
[381814263,1756357858082,-160.0,0.00020884,2]
[381814264,1756357858092,-160.0,0.00020884,2]
[381814265,1756357858100,-216.18903889,0.00020884,2]
[381814266,1756357858109,-217.27834477,0.00020884,2]
[381814267,1756357858119,-160.0,0.00020884,2]
[381814268,1756357858128,-425.52029335,0.00020884,2]
[381814269,1756357858138,-232.64478309,0.00020884,2]
[381814270,1756357858148,-1000.0,0.00020921,2]
[381814271,1756357858157,-1000.0,0.00020921,2]
[381814272,1756357858167,-1000.0,0.00020921,2]
[381814273,1756357858176,-151.0,0.00020935,2]
[381814274,1756357858187,-480.0,0.00020936,2]
[381814275,1756357858196,-480.0,0.00020936,2]
[381814276,1756357858206,-480.0,0.00020936,2]
[381814277,1756357858215,-481.50195085,0.00020936,2]
[381814278,1756357858224,-480.0,0.00020936,2]
[381814279,1756357858233,-480.0,0.00020936,2]
[381814280,1756357858242,-480.0,0.00020936,2]
[381814281,1756357858251,-480.0,0.00020936,2]
[381814282,1756357858261,-805.95,0.00020936,2]
[381814283,1756357858270,-528.48,0.00020936,2]
[381814284,1756357858279,-480.0,0.00020936,2]
[381814285,1756357858288,-480.0,0.00020936,2]
[381814286,1756357858297,-480.0,0.00020936,2]
[381814287,1756357858306,-564.91089389,0.00020936,2]
[381814288,1756357858315,-480.0,0.00020936,2]
[381814289,1756357858324,-480.0,0.00020936,2]
[381814290,1756357858334,-480.0,0.00020936,2]
[381814291,1756357858343,-480.0,0.00020936,2]
[381814292,1756357858353,-480.0,0.00020936,2]
[381814293,1756357858362,-480.0,0.00020936,2]
[381814294,1756357858371,-480.0,0.00020936,2]
[381814295,1756357858380,-480.0,0.00020936,2]
[381814296,1756357858390,-480.0,0.00020936,2]
[381814297,1756357858399,-480.0,0.00020936,2]
[381814298,1756357858408,-523.35206437,0.00020936,2]
[381814299,1756357858417,-480.0,0.00020936,2]
[381814300,1756357858426,-480.0,0.00020936,2]
[381814301,1756357858435,-480.0,0.00020936,2]
[381814302,1756357858444,-480.0,0.00020936,2]
[381814303,1756357858454,-480.0,0.00020936,2]
[381814304,1756357858463,-480.0,0.00020936,2]
[381814305,1756357858472,-480.0,0.00020936,2]
[381814306,1756357858481,-351.70164035,0.00020936,2]
[381814307,1756357858491,-533.88,0.00020936,2]
[381814308,1756357858500,-480.0,0.00020936,2]
[381814309,1756357858510,-480.0,0.00020936,2]
[381814310,1756357858519,-604.71,0.00020936,2]
[381814311,1756357858528,-480.0,0.00020936,2]
[381814312,1756357858537,-480.0,0.00020936,2]
[381814313,1756357858546,-480.0,0.00020936,2]
[381814314,1756357858555,-480.0,0.00020936,2]
[381814315,1756357858564,-795.22,0.00020936,2]
[381814316,1756357858574,-500.0,0.00020936,2]
[381814317,1756357858583,-570.25790931,0.00020936,2]
[381814318,1756357858592,-480.0,0.00020936,2]
[381814319,1756357858601,-480.0,0.00020936,2]
[381814320,1756357858610,-697.35,0.00020936,2]
[381814321,1756357858619,-480.0,0.00020936,2]
[381814322,1756357858628,-480.0,0.00020936,2]
[381814323,1756357858639,-480.0,0.00020936,2]
[381814324,1756357858648,-480.0,0.00020936,2]
[381814325,1756357858657,-480.0,0.00020936,2]
[381814326,1756357858667,-480.0,0.00020936,2]
[381814327,1756357858676,-480.0,0.00020936,2]
[381814328,1756357858685,-480.0,0.00020936,2]
[381814329,1756357858694,-480.0,0.00020936,2]
[381814330,1756357858704,-480.0,0.00020936,2]
[381814331,1756357858713,-480.0,0.00020936,2]
[381814332,1756357858722,-480.0,0.00020936,2]
[381814333,1756357858732,-480.0,0.00020936,2]
[381814334,1756357858742,-480.0,0.00020936,2]
[381814335,1756357858752,-529.5,0.00020936,2]
[381814336,1756357858761,-480.0,0.00020936,2]
[381814337,1756357858771,-480.0,0.00020936,2]
[381814338,1756357858780,-480.0,0.00020936,2]
[381814339,1756357858789,-481.50039817,0.00020936,2]
[381814340,1756357858798,-480.0,0.00020936,2]
[381814341,1756357858808,-480.0,0.00020936,2]
[381814342,1756357858817,-480.0,0.00020936,2]
[381814343,1756357858826,-480.0,0.00020936,2]
[381814344,1756357858835,-500.16,0.00020936,2]
[381814345,1756357858845,-597.76,0.00020936,2]
[381814346,1756357858854,-480.0,0.00020936,2]
[381814347,1756357858863,-545.7,0.00020936,2]
[381814348,1756357858872,-899.98,0.00020936,2]
[381814349,1756357858882,-480.0,0.00020936,2]
[381814350,1756357858891,-492.04,0.00020936,2]
[381814351,1756357858900,-361.65357286,0.00020936,2]
[381814352,1756357858912,-573.17,0.00020936,2]
[381814353,1756357858922,-376.48139921,0.00020936,2]
[381814354,1756357858931,-480.0,0.00020936,2]
[381814355,1756357858941,-480.0,0.00020936,2]
[381814356,1756357858952,-480.0,0.00020936,2]
[381814357,1756357858961,-480.0,0.00020936,2]
[381814358,1756357858971,-554.12,0.00020936,2]
[381814359,1756357858980,-480.0,0.00020936,2]
[381814360,1756357858995,-534.5,0.00020936,2]
[381814361,1756357859004,-480.0,0.00020936,2]
[381814362,1756357859014,-480.0,0.00020936,2]
[381814363,1756357859022,-515.25,0.00020936,2]
[381814364,1756357859033,-522.11,0.00020936,2]
[381814365,1756357859042,-352.14546826,0.00020936,2]
[381814366,1756357859051,-480.0,0.00020936,2]
[381814367,1756357859062,-510.37,0.00020936,2]
[381814368,1756357859071,-480.0,0.00020936,2]
[381814369,1756357859081,-480.0,0.00020936,2]
[381814370,1756357859090,-328.06369466,0.00020936,2]
[381814371,1756357859099,-624.42,0.00020936,2]
[381814372,1756357859108,-480.0,0.00020936,2]
[381814373,1756357859117,-480.0,0.00020936,2]
[381814374,1756357859126,-480.0,0.00020936,2]
[381814375,1756357859136,-480.0,0.00020936,2]
[381814376,1756357859145,-818.02,0.00020936,2]
[381814377,1756357859154,-480.0,0.00020936,2]
[381814378,1756357859163,-480.0,0.00020936,2]
[381814379,1756357859172,-482.25436379,0.00020936,2]
[381814380,1756357859182,-480.0,0.00020936,2]
[381814381,1756357859191,-786.47,0.00020936,2]
[381814382,1756357859200,-7417.32,0.00020936,2]
[381814383,1756357859209,-1601.06,0.00020936,2]
[381814384,1756357859218,-6114.74,0.00020936,2]
[381814385,1756357859228,-804.83,0.00020938,2]
[381814386,1756357859237,-826.54,0.00020938,2]
[381814387,1756357859247,-1640.49,0.00020938,2]
[381814388,1756357859258,-1700.67,0.00020938,2]
[381814389,1756357859267,-480.0,0.00020938,2]
[381814390,1756357859277,-731.13,0.00020938,2]
[381814391,1756357859286,-151.0,0.00020968,2]
[381814392,1756357859296,-2986.88055181,0.00021,2]
[381814393,1756357859305,-480.0,0.0002101,2]
[381814394,1756357859315,-2169.42,0.0002101,2]
[381814395,1756357859325,-639.46,0.0002101,2]
[381814396,1756357859334,-1495.6,0.0002101,2]
[381814397,1756357859344,-515.47,0.0002101,2]
[381814398,1756357859354,-168.0,0.0002108,2]
[381814399,1756357859363,-480.0,0.00021106,2]
[381814400,1756357859373,-480.0,0.00021106,2]
[381814401,1756357859382,-786.65,0.00021106,2]
[381814402,1756357859392,-713.73,0.00021106,2]
[381814403,1756357859401,-480.0,0.00021106,2]
[381814404,1756357859410,-480.0,0.00021106,2]
[381814405,1756357859420,-480.0,0.00021106,2]
[381814406,1756357859430,-480.0,0.00021106,2]
[381814407,1756357859439,-480.0,0.00021106,2]
[381814408,1756357859449,-480.79,0.00021106,2]
[381814409,1756357859458,-480.0,0.00021106,2]
[381814410,1756357859468,-480.0,0.00021106,2]
[381814411,1756357859477,-480.0,0.00021106,2]
[381814412,1756357859487,-648.17,0.00021106,2]
[381814413,1756357859497,-480.0,0.00021106,2]
[381814414,1756357859508,-480.0,0.00021106,2]
[381814415,1756357859518,-586.32772181,0.00021106,2]
[381814416,1756357859529,-533.59,0.00021106,2]
[381814417,1756357859538,-480.0,0.00021106,2]
[381814418,1756357859547,-480.0,0.00021106,2]
[381814419,1756357859558,-510.06237382,0.00021106,2]
[381814420,1756357859567,-655.42,0.00021106,2]
[381814421,1756357859577,-480.0,0.00021106,2]
[381814422,1756357859589,-480.0,0.00021106,2]
[381814423,1756357859599,-480.0,0.00021106,2]
[381814424,1756357859608,-944.76,0.00021106,2]
[381814425,1756357859617,-480.0,0.00021106,2]
[381814426,1756357859627,-511.49589992,0.00021106,2]
[381814427,1756357859637,-480.0,0.00021106,2]
[381814428,1756357859647,-1375.55,0.00021106,2]
[381814429,1756357859656,-537.18,0.00021106,2]
[381814430,1756357859666,-504.38,0.00021106,2]
[381814431,1756357859679,-480.0,0.00021106,2]
[381814432,1756357859688,-790.41,0.00021106,2]
[381814433,1756357859697,-510.07,0.00021106,2]
[381814434,1756357859707,-480.0,0.00021106,2]
[381814435,1756357859716,-480.0,0.00021106,2]
[381814436,1756357859726,-498.02,0.00021106,2]
[381814437,1756357859736,-541.05,0.00021106,2]
[381814438,1756357859746,-487.28,0.00021106,2]
[381814439,1756357859756,-480.0,0.00021106,2]
[381814440,1756357859765,-480.0,0.00021106,2]
[381814441,1756357859775,-633.32,0.00021106,2]
[381814442,1756357859784,-657.6,0.00021106,2]
[381814443,1756357859794,-480.0,0.00021106,2]
[381814444,1756357859803,-644.12,0.00021106,2]
[381814445,1756357859813,-480.0,0.00021106,2]
[381814446,1756357859822,-560.98,0.00021106,2]
[381814447,1756357859831,-480.0,0.00021106,2]
[381814448,1756357859841,-574.0,0.00021106,2]
[381814449,1756357859853,-480.0,0.00021106,2]
[381814450,1756357859862,-502.35,0.00021106,2]
[381814451,1756357859872,-480.0,0.00021106,2]
[381814452,1756357859881,-480.0,0.00021106,2]
[381814453,1756357859891,-480.0,0.00021106,2]
[381814454,1756357859901,-481.18486328,0.00021106,2]
[381814455,1756357859911,-480.0,0.00021106,2]
[381814456,1756357859920,-480.0,0.00021106,2]
[381814457,1756357859930,-480.0,0.00021106,2]
[381814458,1756357859941,-1511.51,0.00021106,2]
[381814459,1756357859951,-480.0,0.00021106,2]
[381814460,1756357859961,-497.56,0.00021106,2]
[381814461,1756357859970,-957.08,0.00021106,2]
[381814462,1756357859980,-1082.64,0.00021106,2]
[381814463,1756357859992,-480.0,0.00021106,2]
[381814464,1756357860002,-527.16,0.00021106,2]
[381814465,1756357860012,-480.0,0.00021106,2]
[381814466,1756357860021,-480.0,0.00021106,2]
[381814467,1756357860033,-480.0,0.00021106,2]
[381814468,1756357860042,-480.0,0.00021106,2]
[381814469,1756357860052,-865.85,0.00021106,2]
[381814470,1756357860063,-564.92,0.00021106,2]
[381814471,1756357860072,-546.44752592,0.00021106,2]
[381814472,1756357860082,-496.05,0.00021106,2]
[381814473,1756357860091,-480.0,0.00021106,2]
[381814474,1756357860100,-480.0,0.00021106,2]
[381814475,1756357860110,-480.0,0.00021106,2]
[381814476,1756357860120,-959.96,0.00021106,2]
[381814477,1756357860129,-480.0,0.00021106,2]
[381814478,1756357860140,-480.0,0.00021106,2]
[381814479,1756357860149,-560.89,0.00021106,2]
[381814480,1756357860159,-480.0,0.00021106,2]
[381814481,1756357860169,-480.0,0.00021106,2]
[381814482,1756357860179,-516.82,0.00021106,2]
[381814483,1756357860188,-533.53,0.00021106,2]
[381814484,1756357860197,-322.78323835,0.00021106,2]
[381814485,1756357860207,-480.0,0.00021106,2]
[381814486,1756357860217,-659.5,0.00021106,2]
[381814487,1756357860226,-480.0,0.00021106,2]
[381814488,1756357860236,-480.0,0.00021106,2]
[381814489,1756357860246,-480.0,0.00021106,2]
[381814490,1756357860256,-480.0,0.00021106,2]
[381814491,1756357860266,-480.83,0.00021106,2]
[381814492,1756357860276,-551.27,0.00021106,2]
[381814493,1756357860286,-983.06,0.00021106,2]
[381814494,1756357860296,-480.0,0.00021106,2]
[381814495,1756357860307,-480.0,0.00021106,2]
[381814496,1756357860317,-750.24,0.00021106,2]
[381814497,1756357860327,-519.97,0.00021106,2]
[381814498,1756357860337,-480.0,0.00021106,2]
[381814499,1756357860346,-2407.13,0.00021106,2]
[381814500,1756357860357,-480.0,0.00021106,2]
[381814501,1756357860367,-480.0,0.00021106,2]
[381814502,1756357860376,-1445.41,0.00021106,2]
[381814503,1756357860387,-1263.67,0.00021106,2]
[381814504,1756357860396,-480.0,0.00021106,2]
[381814505,1756357860406,-922.14,0.00021106,2]
[381814506,1756357860415,-3847.08,0.00021106,2]
[381814507,1756357860425,-480.0,0.00021106,2]
[381814508,1756357860435,-784.19,0.00021106,2]
[381814509,1756357860445,-480.0,0.00021106,2]
[381814510,1756357860455,-1198.44,0.00021106,2]
[381814511,1756357860464,-480.0,0.00021106,2]
[381814512,1756357860475,-682.49,0.00021106,2]
[381814513,1756357860485,-1129.71,0.00021106,2]
[381814514,1756357860495,-480.0,0.00021106,2]
[381814515,1756357860505,-480.0,0.00021106,2]
[381814516,1756357860515,-1134.3,0.00021106,2]
[381814517,1756357860525,-490.66,0.00021106,2]
[381814518,1756357860535,-519.51,0.00021106,2]
[381814519,1756357860546,-658.74,0.00021106,2]
[381814520,1756357860555,-480.0,0.00021106,2]
[381814521,1756357860565,-480.0,0.00021106,2]
[381814522,1756357860575,-739.51,0.00021106,2]
[381814523,1756357860586,-480.0,0.00021106,2]
[381814524,1756357860596,-480.0,0.00021106,2]
[381814525,1756357860606,-525.76,0.00021106,2]
[381814526,1756357860616,-1627.79,0.00021106,2]
[381814527,1756357860626,-480.0,0.00021106,2]
[381814528,1756357860636,-480.0,0.00021106,2]
[381814529,1756357860646,-767.73,0.00021106,2]
[381814530,1756357860655,-480.0,0.00021106,2]
[381814531,1756357860666,-480.0,0.00021106,2]
[381814532,1756357860675,-1532.08,0.00021106,2]
[381814533,1756357860685,-1503.05,0.00021106,2]
[381814534,1756357860694,-824.33,0.00021106,2]
[381814535,1756357860704,-489.36,0.00021106,2]
[381814536,1756357860714,-586.84,0.00021106,2]
[381814537,1756357860724,-480.0,0.00021106,2]
[381814538,1756357860734,-3503.35,0.00021106,2]
[381814539,1756357860743,-480.0,0.00021106,2]
[381814540,1756357860752,-480.0,0.00021106,2]
[381814541,1756357860763,-503.75,0.00021106,2]
[381814542,1756357860773,-480.0,0.00021106,2]
[381814543,1756357860782,-761.51,0.00021106,2]
[381814544,1756357860791,-704.5,0.00021106,2]
[381814545,1756357860801,-274.13897531,0.00021106,2]
[381814546,1756357860810,-723.72,0.00021106,2]
[381814547,1756357860820,-1276.85,0.00021106,2]
[381814548,1756357860830,-480.0,0.00021106,2]
[381814549,1756357860840,-480.0,0.00021106,2]
[381814550,1756357860850,-480.0,0.00021106,2]
[381814551,1756357860859,-480.0,0.00021106,2]
[381814552,1756357860868,-480.0,0.00021106,2]
[381814553,1756357860878,-1002.35,0.00021106,2]